[Event "Titled Tuesday Blitz April 26 Late 2022"]
[White "Ricaurte Lopez, Juan Carlos"]
[Black "Kashefi, Amir Hosein"]
[WhiteFideId "3600327"]
[BlackFideId "12557935"]
[WhiteElo "2209"]
[BlackElo "2008"]
[Result "0-1"]
[Round "05"]
[TimeControl "180+1"]
[Date "2022.04.26"]
[WhiteClock "0:00:02"]
[BlackClock "0:00:07"]

1. e4 {[%clk 0:03:00]}  c6 {[%clk 0:02:38]} 2. d4 {[%clk 0:03:00]}  d5 {[%clk 0:02:30]} 3. exd5 {[%clk 0:03:00]}  cxd5 {[%clk 0:02:30]} 4. c4 {[%clk 0:03:00]}  Nf6 {[%clk 0:02:27]} 5. Nc3 {[%clk 0:03:01]}  e6 {[%clk 0:02:19]} 6. Bg5 {[%clk 0:03:00]}  Be7 {[%clk 0:02:18]} 7. Nf3 {[%clk 0:02:59]}  O-O {[%clk 0:02:17]} 8. a3 {[%clk 0:02:57]}  b6 {[%clk 0:02:16]} 9. Rc1 {[%clk 0:02:56]}  Bb7 {[%clk 0:02:15]} 10. Bd3 {[%clk 0:02:49]}  dxc4 {[%clk 0:01:41]} 11. Bxc4 {[%clk 0:02:47]}  Nbd7 {[%clk 0:01:20]} 12. O-O {[%clk 0:02:47]}  Rc8 {[%clk 0:01:18]} 13. Ba2 {[%clk 0:02:43]}  Nd5 {[%clk 0:01:18]} 14. Bd2 {[%clk 0:02:26]}  Nxc3 {[%clk 0:01:04]} 15. Rxc3 {[%clk 0:02:19]}  Rxc3 {[%clk 0:01:02]} 16. Bxc3 {[%clk 0:02:18]}  Nf6 {[%clk 0:01:01]} 17. Ne5 {[%clk 0:02:14]}  Qa8 {[%clk 0:00:43]} 18. f3 {[%clk 0:02:04]}  Rd8 {[%clk 0:00:35]} 19. Qe2 {[%clk 0:02:02]}  Bd5 {[%clk 0:00:33]} 20. Bb1 {[%clk 0:02:00]}  Nd7 {[%clk 0:00:30]} 21. Re1 {[%clk 0:01:53]}  Nxe5 {[%clk 0:00:30]} 22. dxe5 {[%clk 0:01:53]}  Bc5+ {[%clk 0:00:29]} 23. Kh1 {[%clk 0:01:52]}  Bb7 {[%clk 0:00:17]} 24. Bd3 {[%clk 0:01:42]}  g6 {[%clk 0:00:17]} 25. h4 {[%clk 0:01:37]}  Rd7 {[%clk 0:00:15]} 26. h5 {[%clk 0:01:36]}  Qd8 {[%clk 0:00:14]} 27. g3 {[%clk 0:01:15]}  Rxd3 {[%clk 0:00:13]} 28. Rf1 {[%clk 0:01:12]}  Rxc3 {[%clk 0:00:12]} 29. bxc3 {[%clk 0:01:11]}  Qg5 {[%clk 0:00:13]} 30. Kg2 {[%clk 0:01:06]}  Qxh5 {[%clk 0:00:12]} 31. Rd1 {[%clk 0:01:05]}  Qg5 {[%clk 0:00:11]} 32. Rd7 {[%clk 0:01:03]}  Bc6 {[%clk 0:00:10]} 33. Rxa7 {[%clk 0:01:00]}  Kg7 {[%clk 0:00:10]} 34. a4 {[%clk 0:00:53]}  h5 {[%clk 0:00:09]} 35. a5 {[%clk 0:00:52]}  h4 {[%clk 0:00:09]} 36. g4 {[%clk 0:00:46]}  Qxg4+ {[%clk 0:00:08]} 37. Kh2 {[%clk 0:00:44]}  Bxf3 {[%clk 0:00:08]} 38. Rxf7+ {[%clk 0:00:07]}  Kxf7 {[%clk 0:00:07]} 39. Qf1 {[%clk 0:00:02]}  Qg3# {[%clk 0:00:07]} 0-1


[Site "https://www.chess.com"]

[Event "Titled Tuesday Blitz April 26 Late 2022"]
[White "Richter, Nils"]
[Black "Mayaud, Raphael"]
[WhiteFideId "12990809"]
[BlackFideId "627151"]
[WhiteElo "2243"]
[BlackElo "2191"]
[Result "1-0"]
[Round "05"]
[TimeControl "180+1"]
[Date "2022.04.26"]
[WhiteClock "0:00:35"]
[BlackClock "0:00:12"]

1. e4 {[%clk 0:03:00]}  d5 {[%clk 0:02:59]} 2. exd5 {[%clk 0:03:00]}  Qxd5 {[%clk 0:02:59]} 3. Nc3 {[%clk 0:03:01]}  Qa5 {[%clk 0:02:58]} 4. d4 {[%clk 0:03:01]}  c6 {[%clk 0:02:59]} 5. Nf3 {[%clk 0:03:00]}  Nf6 {[%clk 0:02:58]} 6. Bc4 {[%clk 0:02:59]}  Bf5 {[%clk 0:02:58]} 7. O-O {[%clk 0:02:57]}  e6 {[%clk 0:02:49]} 8. Bd2 {[%clk 0:02:57]}  Qc7 {[%clk 0:02:49]} 9. Ne5 {[%clk 0:02:54]}  Nbd7 {[%clk 0:02:49]} 10. Bf4 {[%clk 0:02:53]}  Bd6 {[%clk 0:02:48]} 11. Re1 {[%clk 0:02:43]}  O-O {[%clk 0:02:48]} 12. Bb3 {[%clk 0:02:35]}  Rad8 {[%clk 0:02:46]} 13. Qe2 {[%clk 0:02:31]}  Rfe8 {[%clk 0:02:41]} 14. Rad1 {[%clk 0:02:30]}  h6 {[%clk 0:02:37]} 15. g4 {[%clk 0:02:25]}  Bh7 {[%clk 0:01:59]} 16. h4 {[%clk 0:02:24]}  Bxe5 {[%clk 0:01:57]} 17. dxe5 {[%clk 0:02:22]}  Nd5 {[%clk 0:01:57]} 18. Nxd5 {[%clk 0:02:16]}  exd5 {[%clk 0:01:52]} 19. c4 {[%clk 0:02:06]}  Nc5 {[%clk 0:01:45]} 20. cxd5 {[%clk 0:02:03]}  Nxb3 {[%clk 0:01:33]} 21. d6 {[%clk 0:02:03]}  Qb6 {[%clk 0:01:33]} 22. axb3 {[%clk 0:02:03]}  Qxb3 {[%clk 0:01:33]} 23. Rc1 {[%clk 0:01:51]}  Qe6 {[%clk 0:01:31]} 24. Rc3 {[%clk 0:01:49]}  Qd5 {[%clk 0:00:58]} 25. Re3 {[%clk 0:01:42]}  Re6 {[%clk 0:00:54]} 26. Bg3 {[%clk 0:01:41]}  g5 {[%clk 0:00:52]} 27. hxg5 {[%clk 0:01:38]}  hxg5 {[%clk 0:00:53]} 28. Ra3 {[%clk 0:01:27]}  a6 {[%clk 0:00:52]} 29. Qe3 {[%clk 0:01:27]}  Rdxd6 {[%clk 0:00:47]} 30. exd6 {[%clk 0:01:15]}  Rxe3 {[%clk 0:00:46]} 31. Raxe3 {[%clk 0:01:16]}  Bg6 {[%clk 0:00:34]} 32. Re8+ {[%clk 0:01:12]}  Kg7 {[%clk 0:00:33]} 33. Be5+ {[%clk 0:01:07]}  f6 {[%clk 0:00:31]} 34. Re7+ {[%clk 0:01:05]}  Kh6 {[%clk 0:00:31]} 35. Bxf6 {[%clk 0:01:00]}  Qf3 {[%clk 0:00:16]} 36. Bg7+ {[%clk 0:00:51]}  Kh7 {[%clk 0:00:17]} 37. Be5+ {[%clk 0:00:46]}  Kh6 {[%clk 0:00:17]} 38. d7 {[%clk 0:00:40]}  Be4 {[%clk 0:00:15]} 39. Bg7+ {[%clk 0:00:37]}  Kg6 {[%clk 0:00:12]} 40. R7xe4 {[%clk 0:00:35]} 1-0


[Site "https://www.chess.com"]

[Event "Titled Tuesday Blitz April 26 Late 2022"]
[White "Romanchuk, Viktor"]
[Black "BM223344"]
[WhiteFideId "14109271"]
[WhiteElo "2242"]
[BlackElo "2450"]
[Result "1-0"]
[Round "05"]
[TimeControl "180+1"]
[Date "2022.04.26"]
[WhiteClock "0:00:30"]
[BlackClock "0:00:58"]

1. d4 {[%clk 0:03:00]}  Nf6 {[%clk 0:02:58]} 2. c4 {[%clk 0:03:00]}  g6 {[%clk 0:02:58]} 3. Nc3 {[%clk 0:03:00]}  Bg7 {[%clk 0:02:58]} 4. Nf3 {[%clk 0:03:01]}  d6 {[%clk 0:02:59]} 5. g3 {[%clk 0:03:01]}  O-O {[%clk 0:02:59]} 6. Bg2 {[%clk 0:03:01]}  Nc6 {[%clk 0:02:59]} 7. O-O {[%clk 0:03:02]}  e5 {[%clk 0:03:00]} 8. dxe5 {[%clk 0:03:02]}  Nxe5 {[%clk 0:02:58]} 9. Nxe5 {[%clk 0:03:00]}  dxe5 {[%clk 0:02:59]} 10. Qxd8 {[%clk 0:03:00]}  Rxd8 {[%clk 0:02:59]} 11. Bg5 {[%clk 0:03:01]}  Rd7 {[%clk 0:02:53]} 12. Bh3 {[%clk 0:02:44]}  Rd6 {[%clk 0:02:41]} 13. Bxc8 {[%clk 0:02:43]}  Rxc8 {[%clk 0:02:40]} 14. Rfd1 {[%clk 0:02:40]}  h6 {[%clk 0:02:29]} 15. Bxf6 {[%clk 0:02:31]}  Bxf6 {[%clk 0:02:28]} 16. Rxd6 {[%clk 0:02:02]}  cxd6 {[%clk 0:02:27]} 17. Ne4 {[%clk 0:02:00]}  Be7 {[%clk 0:02:26]} 18. b3 {[%clk 0:02:00]}  a6 {[%clk 0:02:18]} 19. Rd1 {[%clk 0:01:59]}  Rc6 {[%clk 0:02:18]} 20. Rd5 {[%clk 0:01:57]}  f5 {[%clk 0:02:15]} 21. Nd2 {[%clk 0:01:53]}  Kf7 {[%clk 0:02:15]} 22. e4 {[%clk 0:01:53]}  Ke6 {[%clk 0:02:15]} 23. Kf1 {[%clk 0:01:51]}  Rc5 {[%clk 0:02:09]} 24. Rxc5 {[%clk 0:01:49]}  dxc5 {[%clk 0:02:10]} 25. Ke2 {[%clk 0:01:46]}  Bd8 {[%clk 0:02:10]} 26. Ke3 {[%clk 0:01:35]}  Ba5 {[%clk 0:02:09]} 27. Nb1 {[%clk 0:01:29]}  b5 {[%clk 0:02:07]} 28. f3 {[%clk 0:01:21]}  Bb4 {[%clk 0:02:03]} 29. Kd3 {[%clk 0:01:18]}  Kd6 {[%clk 0:02:00]} 30. h3 {[%clk 0:01:00]}  Be1 {[%clk 0:01:53]} 31. exf5 {[%clk 0:00:59]}  gxf5 {[%clk 0:01:53]} 32. g4 {[%clk 0:01:00]}  Ke6 {[%clk 0:01:49]} 33. cxb5 {[%clk 0:00:58]}  axb5 {[%clk 0:01:48]} 34. Na3 {[%clk 0:00:58]}  fxg4 {[%clk 0:01:44]} 35. hxg4 {[%clk 0:00:57]}  b4 {[%clk 0:01:43]} 36. Nc4 {[%clk 0:00:56]}  Kd5 {[%clk 0:01:34]} 37. Ne3+ {[%clk 0:00:55]}  Ke6 {[%clk 0:01:34]} 38. Nf5 {[%clk 0:00:52]}  Kf6 {[%clk 0:01:21]} 39. Ke4 {[%clk 0:00:48]}  Bd2 {[%clk 0:01:19]} 40. Nd6 {[%clk 0:00:44]}  Kg5 {[%clk 0:01:06]} 41. Nc4 {[%clk 0:00:42]}  Bc3 {[%clk 0:01:03]} 42. Nxe5 {[%clk 0:00:42]}  h5 {[%clk 0:01:01]} 43. f4+ {[%clk 0:00:36]}  Kh4 {[%clk 0:01:01]} 44. g5 {[%clk 0:00:31]}  Bxe5 {[%clk 0:00:55]} 45. Kxe5 {[%clk 0:00:31]}  Kg4 {[%clk 0:00:55]} 46. g6 {[%clk 0:00:31]}  h4 {[%clk 0:00:56]} 47. g7 {[%clk 0:00:31]}  h3 {[%clk 0:00:57]} 48. g8=Q+ {[%clk 0:00:31]}  Kf3 {[%clk 0:00:58]} 49. Qh7 {[%clk 0:00:30]} 1-0


[Site "https://www.chess.com"]

[Event "Titled Tuesday Blitz April 26 Late 2022"]
[White "Rosenberg, Evan S"]
[Black "Kim, Sergey"]
[WhiteFideId "2019299"]
[BlackFideId "13700570"]
[WhiteElo "2337"]
[BlackElo "2499"]
[Result "1-0"]
[Round "05"]
[TimeControl "180+1"]
[Date "2022.04.26"]
[WhiteClock "0:00:10"]
[BlackClock "0:01:02"]

1. Nf3 {[%clk 0:03:00]}  Nf6 {[%clk 0:02:59]} 2. c4 {[%clk 0:03:01]}  g6 {[%clk 0:02:59]} 3. Nc3 {[%clk 0:03:02]}  Bg7 {[%clk 0:03:00]} 4. e4 {[%clk 0:03:02]}  d6 {[%clk 0:03:00]} 5. d4 {[%clk 0:03:03]}  O-O {[%clk 0:03:00]} 6. h3 {[%clk 0:03:04]}  e5 {[%clk 0:03:00]} 7. dxe5 {[%clk 0:03:04]}  dxe5 {[%clk 0:03:00]} 8. Qxd8 {[%clk 0:03:05]}  Rxd8 {[%clk 0:03:00]} 9. Bg5 {[%clk 0:03:06]}  c6 {[%clk 0:03:00]} 10. Nxe5 {[%clk 0:03:06]}  Na6 {[%clk 0:02:57]} 11. Nf3 {[%clk 0:02:45]}  Re8 {[%clk 0:02:55]} 12. O-O-O {[%clk 0:02:39]}  Nc5 {[%clk 0:02:45]} 13. e5 {[%clk 0:02:34]}  Nfd7 {[%clk 0:02:43]} 14. g4 {[%clk 0:01:46]}  Nxe5 {[%clk 0:02:40]} 15. Nxe5 {[%clk 0:01:47]}  Bxe5 {[%clk 0:02:40]} 16. f4 {[%clk 0:01:45]}  Bg7 {[%clk 0:02:38]} 17. Kc2 {[%clk 0:01:42]}  a5 {[%clk 0:02:28]} 18. Bg2 {[%clk 0:01:21]}  h5 {[%clk 0:02:26]} 19. f5 {[%clk 0:01:17]}  gxf5 {[%clk 0:02:18]} 20. gxh5 {[%clk 0:01:17]}  Be6 {[%clk 0:02:13]} 21. h6 {[%clk 0:01:15]}  Bh8 {[%clk 0:02:02]} 22. Rhg1 {[%clk 0:01:11]}  Kh7 {[%clk 0:02:02]} 23. b3 {[%clk 0:01:06]}  a4 {[%clk 0:02:00]} 24. Be3 {[%clk 0:01:04]}  axb3+ {[%clk 0:01:52]} 25. axb3 {[%clk 0:01:04]}  Nd7 {[%clk 0:01:51]} 26. Bd4 {[%clk 0:00:52]}  Nf6 {[%clk 0:01:48]} 27. Bf3 {[%clk 0:00:48]}  Kxh6 {[%clk 0:01:45]} 28. Rg2 {[%clk 0:00:41]}  Rg8 {[%clk 0:01:43]} 29. Rdg1 {[%clk 0:00:34]}  Rxg2+ {[%clk 0:01:42]} 30. Rxg2 {[%clk 0:00:35]}  Kh7 {[%clk 0:01:33]} 31. Rg5 {[%clk 0:00:19]}  Bg7 {[%clk 0:01:24]} 32. Ne2 {[%clk 0:00:14]}  Ra2+ {[%clk 0:01:17]} 33. Kb1 {[%clk 0:00:14]}  Rd2 {[%clk 0:01:08]} 34. Bc3 {[%clk 0:00:12]}  Rd3 {[%clk 0:01:06]} 35. Bh5 {[%clk 0:00:11]}  Nxh5 {[%clk 0:01:02]} 36. Rxh5+ {[%clk 0:00:11]}  Kg6 {[%clk 0:01:02]} 37. Nf4# {[%clk 0:00:10]} 1-0


[Site "https://www.chess.com"]

[Event "Titled Tuesday Blitz April 26 Late 2022"]
[White "Sanal, Vahap"]
[Black "Sevian, Samuel"]
[WhiteFideId "6300545"]
[BlackFideId "2040506"]
[WhiteElo "2603"]
[BlackElo "2698"]
[Result "0-1"]
[Round "05"]
[TimeControl "180+1"]
[Date "2022.04.26"]
[WhiteClock "0:00:01"]
[BlackClock "0:00:33"]

1. e4 {[%clk 0:02:57]}  c5 {[%clk 0:02:56]} 2. Nc3 {[%clk 0:02:55]}  e6 {[%clk 0:02:54]} 3. g3 {[%clk 0:02:54]}  a6 {[%clk 0:02:54]} 4. Bg2 {[%clk 0:02:54]}  b5 {[%clk 0:02:54]} 5. d3 {[%clk 0:02:54]}  Bb7 {[%clk 0:02:54]} 6. Nh3 {[%clk 0:02:53]}  g6 {[%clk 0:02:49]} 7. Be3 {[%clk 0:02:48]}  d6 {[%clk 0:02:48]} 8. d4 {[%clk 0:02:35]}  cxd4 {[%clk 0:02:47]} 9. Qxd4 {[%clk 0:02:30]}  Nf6 {[%clk 0:02:47]} 10. O-O-O {[%clk 0:02:20]}  Nc6 {[%clk 0:02:46]} 11. Qd2 {[%clk 0:02:20]}  Ne5 {[%clk 0:02:47]} 12. Qe2 {[%clk 0:02:11]}  Rc8 {[%clk 0:02:46]} 13. Bd4 {[%clk 0:02:10]}  Qa5 {[%clk 0:02:01]} 14. f4 {[%clk 0:02:04]}  b4 {[%clk 0:02:01]} 15. Nb1 {[%clk 0:02:00]}  Ned7 {[%clk 0:02:00]} 16. g4 {[%clk 0:01:08]}  e5 {[%clk 0:01:34]} 17. g5 {[%clk 0:01:00]}  Nh5 {[%clk 0:01:25]} 18. fxe5 {[%clk 0:00:58]}  dxe5 {[%clk 0:01:25]} 19. Be3 {[%clk 0:00:57]}  Nc5 {[%clk 0:01:23]} 20. Qg4 {[%clk 0:00:29]}  Qxa2 {[%clk 0:01:06]} 21. Bxc5 {[%clk 0:00:21]}  Bxc5 {[%clk 0:01:07]} 22. Qd7+ {[%clk 0:00:22]}  Kf8 {[%clk 0:01:06]} 23. Rd3 {[%clk 0:00:15]}  Qe6 {[%clk 0:01:03]} 24. Qxb7 {[%clk 0:00:13]}  Kg7 {[%clk 0:00:54]} 25. Rf1 {[%clk 0:00:13]}  Rhd8 {[%clk 0:00:49]} 26. Rdf3 {[%clk 0:00:12]}  Nf4 {[%clk 0:00:49]} 27. Nxf4 {[%clk 0:00:06]}  exf4 {[%clk 0:00:49]} 28. b3 {[%clk 0:00:06]}  Be3+ {[%clk 0:00:45]} 29. Kb2 {[%clk 0:00:07]}  Qe5+ {[%clk 0:00:44]} 30. c3 {[%clk 0:00:05]}  bxc3+ {[%clk 0:00:43]} 31. Kc2 {[%clk 0:00:04]}  Rc7 {[%clk 0:00:36]} 32. Qxa6 {[%clk 0:00:03]}  Rd2+ {[%clk 0:00:35]} 33. Nxd2 {[%clk 0:00:03]}  cxd2+ {[%clk 0:00:36]} 34. Kd1 {[%clk 0:00:04]}  Rc1+ {[%clk 0:00:34]} 35. Ke2 {[%clk 0:00:04]}  d1=Q+ {[%clk 0:00:35]} 36. Rxd1 {[%clk 0:00:04]}  Qb2+ {[%clk 0:00:35]} 37. Kd3 {[%clk 0:00:01]}  Qd4+ {[%clk 0:00:33]} 0-1


[Site "https://www.chess.com"]

[Event "Titled Tuesday Blitz April 26 Late 2022"]
[White "Sanchez Alvares, Kelvin Antonio"]
[Black "volunteers1998"]
[WhiteFideId "3906680"]
[WhiteElo "2193"]
[BlackElo "2284"]
[Result "1-0"]
[Round "05"]
[TimeControl "180+1"]
[Date "2022.04.26"]
[WhiteClock "0:00:10"]
[BlackClock "0:00:02"]

1. Nf3 {[%clk 0:02:12]}  f5 {[%clk 0:02:58]} 2. b3 {[%clk 0:02:10]}  Nf6 {[%clk 0:02:57]} 3. Bb2 {[%clk 0:02:10]}  e6 {[%clk 0:02:55]} 4. d3 {[%clk 0:02:10]}  Be7 {[%clk 0:02:53]} 5. Nbd2 {[%clk 0:02:10]}  O-O {[%clk 0:02:51]} 6. g3 {[%clk 0:02:01]}  d6 {[%clk 0:02:49]} 7. Bg2 {[%clk 0:01:54]}  e5 {[%clk 0:02:47]} 8. e4 {[%clk 0:01:51]}  Nc6 {[%clk 0:02:41]} 9. a3 {[%clk 0:01:46]}  Bd7 {[%clk 0:02:36]} 10. Qe2 {[%clk 0:01:37]}  Qe8 {[%clk 0:02:34]} 11. h3 {[%clk 0:01:36]}  Qh5 {[%clk 0:02:29]} 12. exf5 {[%clk 0:01:20]}  Qxf5 {[%clk 0:02:26]} 13. O-O-O {[%clk 0:01:18]}  a6 {[%clk 0:02:19]} 14. Nh4 {[%clk 0:01:00]}  Qe6 {[%clk 0:02:14]} 15. g4 {[%clk 0:00:47]}  Rab8 {[%clk 0:02:10]} 16. Nf5 {[%clk 0:00:45]}  b5 {[%clk 0:02:04]} 17. d4 {[%clk 0:00:38]}  Rfe8 {[%clk 0:01:53]} 18. Rhe1 {[%clk 0:00:24]}  Bf8 {[%clk 0:01:50]} 19. Nf3 {[%clk 0:00:14]}  exd4 {[%clk 0:01:47]} 20. Qxe6+ {[%clk 0:00:14]}  Rxe6 {[%clk 0:01:45]} 21. N3xd4 {[%clk 0:00:12]}  Nxd4 {[%clk 0:01:42]} 22. Nxd4 {[%clk 0:00:10]}  Rxe1 {[%clk 0:01:40]} 23. Rxe1 {[%clk 0:00:11]}  Re8 {[%clk 0:01:36]} 24. Rxe8 {[%clk 0:00:11]}  Bxe8 {[%clk 0:01:37]} 25. Ne6 {[%clk 0:00:10]}  c6 {[%clk 0:01:35]} 26. Nc7 {[%clk 0:00:09]}  Bd7 {[%clk 0:01:29]} 27. Nxa6 {[%clk 0:00:09]}  d5 {[%clk 0:01:24]} 28. b4 {[%clk 0:00:07]}  Kf7 {[%clk 0:01:21]} 29. Bd4 {[%clk 0:00:06]}  Bd6 {[%clk 0:01:19]} 30. Nc5 {[%clk 0:00:06]}  Bc8 {[%clk 0:01:14]} 31. Nd3 {[%clk 0:00:06]}  g6 {[%clk 0:01:11]} 32. f4 {[%clk 0:00:06]}  h6 {[%clk 0:01:09]} 33. Be5 {[%clk 0:00:06]}  Ke7 {[%clk 0:01:07]} 34. Bxd6+ {[%clk 0:00:05]}  Kxd6 {[%clk 0:01:07]} 35. Kd2 {[%clk 0:00:06]}  Ne4+ {[%clk 0:01:02]} 36. Bxe4 {[%clk 0:00:06]}  dxe4 {[%clk 0:01:03]} 37. Ne5 {[%clk 0:00:06]}  g5 {[%clk 0:01:01]} 38. Ke3 {[%clk 0:00:06]}  gxf4+ {[%clk 0:00:59]} 39. Kxf4 {[%clk 0:00:07]}  e3 {[%clk 0:00:58]} 40. Nd3 {[%clk 0:00:07]}  e2 {[%clk 0:00:56]} 41. Ke3 {[%clk 0:00:07]}  Be6 {[%clk 0:00:55]} 42. Kxe2 {[%clk 0:00:06]}  Bc4 {[%clk 0:00:51]} 43. Ke3 {[%clk 0:00:06]}  Ke6 {[%clk 0:00:47]} 44. Nf4+ {[%clk 0:00:06]}  Ke5 {[%clk 0:00:44]} 45. Nd3+ {[%clk 0:00:06]}  Ke6 {[%clk 0:00:43]} 46. Nc5+ {[%clk 0:00:06]}  Ke5 {[%clk 0:00:40]} 47. c3 {[%clk 0:00:06]}  Bf1 {[%clk 0:00:37]} 48. h4 {[%clk 0:00:06]}  Bh3 {[%clk 0:00:35]} 49. Nd3+ {[%clk 0:00:06]}  Kf6 {[%clk 0:00:33]} 50. Nf2 {[%clk 0:00:07]}  Bf1 {[%clk 0:00:31]} 51. Kf4 {[%clk 0:00:08]}  Bc4 {[%clk 0:00:28]} 52. g5+ {[%clk 0:00:09]}  hxg5+ {[%clk 0:00:26]} 53. hxg5+ {[%clk 0:00:09]}  Kg6 {[%clk 0:00:24]} 54. Ng4 {[%clk 0:00:10]}  Bg8 {[%clk 0:00:20]} 55. Ne5+ {[%clk 0:00:10]}  Kg7 {[%clk 0:00:17]} 56. Nxc6 {[%clk 0:00:11]}  Bc4 {[%clk 0:00:15]} 57. Ne5 {[%clk 0:00:12]}  Bb3 {[%clk 0:00:12]} 58. Ke3 {[%clk 0:00:12]}  Bd1 {[%clk 0:00:10]} 59. Kd4 {[%clk 0:00:13]}  Bc2 {[%clk 0:00:06]} 60. Kc5 {[%clk 0:00:12]}  Ba4 {[%clk 0:00:05]} 61. c4 {[%clk 0:00:11]}  bxc4 {[%clk 0:00:05]} 62. Kxc4 {[%clk 0:00:12]}  Kf8 {[%clk 0:00:04]} 63. Kc5 {[%clk 0:00:12]}  Ke7 {[%clk 0:00:04]} 64. b5 {[%clk 0:00:11]}  Bc2 {[%clk 0:00:03]} 65. b6 {[%clk 0:00:11]}  Kd8 {[%clk 0:00:03]} 66. g6 {[%clk 0:00:10]}  Kc8 {[%clk 0:00:03]} 67. g7 {[%clk 0:00:10]}  Bh7 {[%clk 0:00:03]} 68. Nc6 {[%clk 0:00:10]}  Kb7 {[%clk 0:00:02]} 69. Ne7 {[%clk 0:00:10]}  Bg8 {[%clk 0:00:02]} 70. Nxg8 {[%clk 0:00:10]} 1-0


[Site "https://www.chess.com"]

[Event "Titled Tuesday Blitz April 26 Late 2022"]
[White "Sjugirov, Sanan"]
[Black "Szpar, Milosz"]
[WhiteFideId "4189302"]
[BlackFideId "1184989"]
[WhiteElo "2602"]
[BlackElo "2447"]
[Result "1/2-1/2"]
[Round "05"]
[TimeControl "180+1"]
[Date "2022.04.26"]
[WhiteClock "0:00:04"]
[BlackClock "0:00:05"]

1. e4 {[%clk 0:03:00]}  c5 {[%clk 0:02:58]} 2. Nf3 {[%clk 0:03:00]}  d6 {[%clk 0:02:58]} 3. Bb5+ {[%clk 0:02:58]}  Bd7 {[%clk 0:02:57]} 4. Bxd7+ {[%clk 0:02:58]}  Nxd7 {[%clk 0:02:57]} 5. c3 {[%clk 0:02:56]}  Ngf6 {[%clk 0:02:52]} 6. Qe2 {[%clk 0:02:56]}  Rc8 {[%clk 0:02:47]} 7. O-O {[%clk 0:02:56]}  e6 {[%clk 0:02:43]} 8. d4 {[%clk 0:02:54]}  cxd4 {[%clk 0:02:38]} 9. cxd4 {[%clk 0:02:55]}  d5 {[%clk 0:02:38]} 10. e5 {[%clk 0:02:54]}  Ng8 {[%clk 0:02:38]} 11. Nc3 {[%clk 0:02:48]}  a6 {[%clk 0:02:36]} 12. Be3 {[%clk 0:02:41]}  Ne7 {[%clk 0:02:35]} 13. Ne1 {[%clk 0:02:27]}  g6 {[%clk 0:02:10]} 14. Nd3 {[%clk 0:02:24]}  h5 {[%clk 0:02:00]} 15. Rac1 {[%clk 0:02:16]}  Nf5 {[%clk 0:01:59]} 16. Na4 {[%clk 0:01:55]}  Be7 {[%clk 0:01:36]} 17. Rxc8 {[%clk 0:01:54]}  Qxc8 {[%clk 0:01:37]} 18. Rc1 {[%clk 0:01:55]}  Qb8 {[%clk 0:01:32]} 19. Qc2 {[%clk 0:01:50]}  Bd8 {[%clk 0:00:44]} 20. Qc8 {[%clk 0:01:47]}  Qxc8 {[%clk 0:00:41]} 21. Rxc8 {[%clk 0:01:48]}  O-O {[%clk 0:00:41]} 22. Nac5 {[%clk 0:01:29]}  Nb6 {[%clk 0:00:35]} 23. Rb8 {[%clk 0:01:24]}  Nxe3 {[%clk 0:00:33]} 24. fxe3 {[%clk 0:01:23]}  Bg5 {[%clk 0:00:33]} 25. Rxb7 {[%clk 0:01:08]}  Nc4 {[%clk 0:00:28]} 26. b3 {[%clk 0:01:06]}  Bxe3+ {[%clk 0:00:16]} 27. Kf1 {[%clk 0:01:06]}  Na3 {[%clk 0:00:11]} 28. Ra7 {[%clk 0:00:45]}  Bxd4 {[%clk 0:00:11]} 29. Rxa6 {[%clk 0:00:45]}  Nc2 {[%clk 0:00:12]} 30. a3 {[%clk 0:00:33]}  Rc8 {[%clk 0:00:11]} 31. b4 {[%clk 0:00:33]}  Ne3+ {[%clk 0:00:12]} 32. Kf2 {[%clk 0:00:29]}  Nc4+ {[%clk 0:00:08]} 33. Ke2 {[%clk 0:00:29]}  Nxe5 {[%clk 0:00:07]} 34. Nxe5 {[%clk 0:00:28]}  Bxe5 {[%clk 0:00:08]} 35. h3 {[%clk 0:00:25]}  Bd4 {[%clk 0:00:08]} 36. Nb3 {[%clk 0:00:22]}  Bb2 {[%clk 0:00:08]} 37. Nc5 {[%clk 0:00:18]}  Bd4 {[%clk 0:00:08]} 38. Nd7 {[%clk 0:00:16]}  e5 {[%clk 0:00:07]} 39. Nf6+ {[%clk 0:00:15]}  Kg7 {[%clk 0:00:06]} 40. Nxd5 {[%clk 0:00:16]}  Rc2+ {[%clk 0:00:07]} 41. Kd3 {[%clk 0:00:12]}  Rxg2 {[%clk 0:00:07]} 42. b5 {[%clk 0:00:12]}  Rg3+ {[%clk 0:00:07]} 43. Kc4 {[%clk 0:00:12]}  Rxh3 {[%clk 0:00:07]} 44. b6 {[%clk 0:00:12]}  Bxb6 {[%clk 0:00:06]} 45. Nxb6 {[%clk 0:00:12]}  h4 {[%clk 0:00:07]} 46. Nd5 {[%clk 0:00:10]}  Rg3 {[%clk 0:00:05]} 47. Rb6 {[%clk 0:00:06]}  Rxa3 {[%clk 0:00:05]} 48. Rb1 {[%clk 0:00:07]}  Rg3 {[%clk 0:00:05]} 49. Rh1 {[%clk 0:00:07]}  h3 {[%clk 0:00:05]} 50. Nc3 {[%clk 0:00:06]}  f5 {[%clk 0:00:06]} 51. Ne2 {[%clk 0:00:06]}  Rg2 {[%clk 0:00:05]} 52. Kd3 {[%clk 0:00:06]}  h2 {[%clk 0:00:05]} 53. Ke3 {[%clk 0:00:06]}  e4 {[%clk 0:00:04]} 54. Nf4 {[%clk 0:00:06]}  Rg3+ {[%clk 0:00:04]} 55. Kd4 {[%clk 0:00:06]}  Rf3 {[%clk 0:00:04]} 56. Ke5 {[%clk 0:00:05]}  g5 {[%clk 0:00:03]} 57. Ne6+ {[%clk 0:00:05]}  Kg6 {[%clk 0:00:04]} 58. Rxh2 {[%clk 0:00:05]}  e3 {[%clk 0:00:04]} 59. Nd4 {[%clk 0:00:03]}  Rf2 {[%clk 0:00:04]} 60. Rh1 {[%clk 0:00:03]}  f4 {[%clk 0:00:05]} 61. Ke4 {[%clk 0:00:03]}  e2 {[%clk 0:00:05]} 62. Re1 {[%clk 0:00:03]}  g4 {[%clk 0:00:04]} 63. Nxe2 {[%clk 0:00:03]}  Kg5 {[%clk 0:00:04]} 64. Nd4 {[%clk 0:00:03]}  g3 {[%clk 0:00:04]} 65. Ra1 {[%clk 0:00:02]}  g2 {[%clk 0:00:03]} 66. Nf3+ {[%clk 0:00:02]}  Kg4 {[%clk 0:00:04]} 67. Ng1 {[%clk 0:00:03]}  Kg3 {[%clk 0:00:04]} 68. Ra3+ {[%clk 0:00:03]}  f3 {[%clk 0:00:04]} 69. Nxf3 {[%clk 0:00:03]}  Rxf3 {[%clk 0:00:03]} 70. Rxf3+ {[%clk 0:00:04]}  Kh2 {[%clk 0:00:04]} 71. Rf2 {[%clk 0:00:04]}  Kh1 {[%clk 0:00:04]} 72. Rxg2 {[%clk 0:00:04]}  Kxg2 {[%clk 0:00:05]} 1/2-1/2


[Site "https://www.chess.com"]